bitfinex/quotes_ETHUSD_20241120
["timestamp","ask_amount","ask_price","bid_price","bid_amount"]
[1732079365183,3.23091,3095.1,3094.7,0.07741142]
[1732079365579,3.0,3095.3,3094.7,0.07741142]
[1732079367316,3.23083,3095.2,3094.7,0.07741142]
[1732079368126,3.0,3095.3,3094.7,2.66245142]
[1732079368296,3.0,3095.3,3094.7,5.59111079]
[1732079368633,3.0,3095.3,3094.8,0.7526]
[1732079368922,3.0,3095.3,3094.8,3.41492979]
[1732079369739,3.0,3095.5,3095.0,2.58477]
[1732079370028,3.0,3095.5,3095.1,0.82992001]
[1732079370213,3.0,3095.5,3095.1,1.17138901]
[1732079371043,3.0,3095.7,3095.2,2.58458]
[1732079371207,3.99189,3096.0,3095.3,2.58452]
[1732079371208,3.0,3095.9,3095.3,2.58452]
[1732079371538,3.22976,3096.2,3095.3,3.2958703]
[1732079371539,0.7619,3096.2,3095.3,3.2958703]
[1732079371734,3.23007,3095.9,3095.3,3.2958703]
[1732079372297,3.23007,3095.9,3095.4,0.7526]
[1732079372543,3.0,3095.8,3095.5,0.07724169]
[1732079373994,3.0,3096.0,3095.5,0.07724169]
[1732079374225,6.22998,3096.0,3095.5,0.07724169]
[1732079374431,3.0,3096.0,3095.5,1.03339469]
[1732079374750,3.0,3096.0,3095.5,3.61777469]
[1732079375119,3.0,3096.0,3095.6,0.7526]
[1732079375321,3.22967,3096.3,3095.6,3.33688]
[1732079375322,3.0,3096.2,3095.6,3.33688]
[1732079375524,6.22976,3096.2,3095.7,0.07720491]
[1732079375724,3.0,3096.2,3095.7,0.07720491]
[1732079375927,3.0,3096.2,3095.7,0.81637045]
[1732079376505,3.22967,3096.3,3095.7,3.40057045]
[1732079377221,3.22987,3096.1,3095.7,0.81637045]
[1732079377799,3.22987,3096.1,3095.7,0.07720491]
[1732079379244,3.23008,3095.9,3095.7,0.07720491]
[1732079379470,3.23018,3095.8,3095.7,0.07720491]
[1732079379807,3.23018,3095.8,3095.4,0.7526]
[1732079380004,3.23029,3095.7,3095.4,0.7526]
[1732079383642,3.23029,3095.7,3095.2,0.817]
[1732079383643,3.23049,3095.5,3095.2,0.817]
[1732079383848,3.23074,3095.3,3094.7,1.117]
[1732079384045,3.23084,3095.2,3094.8,0.37021]
[1732079384401,3.23092,3095.1,3094.8,0.37021]
[1732079384621,3.23092,3095.1,3094.7,1.117]
[1732079385056,3.23108,3095.0,3094.7,1.117]
[1732079385260,3.23112,3094.9,3094.7,1.117]
[1732079387462,6.4619,3095.1,3094.7,1.117]
[1732079387638,3.23104,3095.0,3094.7,1.117]
[1732079390162,3.23112,3094.9,3094.7,0.817]
[1732079393166,3.23112,3094.9,3094.8,0.07470058]
[1732079393569,3.23112,3094.9,3094.7,0.817]
[1732079393867,3.23122,3094.8,3094.7,0.817]
[1732079394081,3.8257,3095.6,3094.7,0.817]
[1732079394362,3.23088,3095.2,3094.8,2.92865937]
[1732079394567,3.23088,3095.2,3094.8,3.56819993]
[1732079395071,3.23077,3095.3,3094.8,3.56819993]
[1732079395563,3.23061,3095.4,3094.9,0.817]
[1732079395905,3.23061,3095.4,3094.9,1.25551999]
[1732079398462,3.23023,3095.8,3095.1,2.92865937]
[1732079398661,3.23023,3095.8,3095.3,0.817]
[1732079398662,3.23029,3095.7,3095.3,0.817]
[1732079399088,6.4605,3095.8,3095.3,0.817]
[1732079399703,3.23029,3095.7,3095.3,0.817]
[1732079401010,3.23029,3095.7,3095.3,1.45003694]
[1732079401301,3.23052,3095.5,3095.3,1.45003694]
[1732079402213,3.23029,3095.7,3095.3,1.45003694]
[1732079402972,6.46067,3095.7,3095.3,1.45003694]
[1732079403911,3.23029,3095.7,3095.3,1.45003694]
[1732079404067,3.23039,3095.6,3095.3,1.45003694]
[1732079404273,3.23029,3095.7,3095.3,1.45003694]
[1732079405074,6.46066,3095.7,3095.3,1.45003694]
[1732079405288,3.2304,3095.6,3095.3,1.45003694]
[1732079405684,3.23029,3095.7,3095.3,1.45003694]
[1732079406711,3.0,3096.0,3095.3,2.80062224]
[1732079407010,3.23024,3095.8,3095.4,0.28006222]
[1732079407512,3.23031,3095.7,3095.4,0.28006222]
[1732079408212,3.23028,3095.8,3095.5,0.07461883]
[1732079408411,6.46056,3095.8,3095.5,0.31938358]
[1732079408727,3.23028,3095.8,3095.5,0.31938358]
[1732079409016,3.22998,3096.0,3095.7,2.1675853]
[1732079409385,3.22998,3096.0,3095.8,0.07459092]
[1732079409580,3.22998,3096.0,3095.7,2.1675853]
[1732079409773,3.22998,3096.0,3095.8,0.07459092]
[1732079409977,3.22977,3096.2,3095.9,1.3505853]
[1732079410228,3.22977,3096.2,3095.9,1.42513099]
[1732079410588,3.22977,3096.2,3095.9,0.07454569]
[1732079411120,3.22977,3096.2,3095.7,3.40122]
[1732079411290,3.22977,3096.2,3096.0,0.07452928]
[1732079411489,3.22977,3096.2,3095.7,1.19123442]
[1732079411787,3.22977,3096.2,3095.8,0.7524]
[1732079411991,3.22977,3096.2,3095.8,0.82694157]
[1732079412298,3.22977,3096.2,3095.8,1.20548917]
[1732079414301,3.22959,3096.4,3095.8,6.71496335]
[1732079414511,6.98249,3096.6,3095.8,6.71496335]
[1732079414718,6.98249,3096.6,3096.0,2.58393]
[1732079414917,6.22939,3096.6,3096.0,2.58393]
[1732079415139,6.22939,3096.6,3096.1,0.07451367]
[1732079415542,3.22924,3096.7,3096.2,0.7524]
[1732079415865,3.22924,3096.7,3096.3,0.07449507]
[1732079416353,0.7531,3096.8,3096.3,0.07449507]
[1732079416354,3.22936,3096.6,3096.3,0.07449507]
[1732079418840,3.22946,3096.5,3096.3,0.07449507]
[1732079419331,3.22955,3096.4,3096.3,0.07449507]
[1732079420066,3.22955,3096.4,3096.3,0.0719268]
[1732079420365,3.22955,3096.4,3095.9,0.7981]
[1732079420539,3.22955,3096.4,3096.0,0.70271111]
[1732079421140,3.22985,3096.2,3096.0,0.70271111]
[1732079421465,3.22985,3096.2,3096.0,0.07195469]
[1732079421667,3.22986,3096.1,3096.0,0.07195469]
[1732079421973,0.8204,3096.3,3095.3,0.7981]
[1732079421974,3.23039,3095.6,3095.3,0.7981]
[1732079422127,0.8204,3095.8,3095.0,0.7981]
[1732079422128,3.23087,3095.2,3095.0,0.7981]
[1732079422481,3.23087,3095.2,3094.8,0.7981]
[1732079422482,3.23091,3095.1,3094.8,0.7981]
[1732079422657,4.05063,3095.8,3094.8,0.7981]
[1732079422658,3.23063,3095.4,3094.9,0.37234442]
[1732079423366,3.23063,3095.4,3095.0,0.07205126]
[1732079423930,3.23072,3095.3,3095.0,0.07205126]
[1732079424634,3.23043,3095.6,3095.0,0.07205126]
[1732079424863,0.8204,3095.8,3095.0,0.07205126]
[1732079424864,3.2307,3095.3,3095.0,0.07205126]
[1732079425373,3.2306,3095.4,3095.0,0.07205126]
[1732079425557,6.4613,3095.4,3095.0,0.07205126]
[1732079426272,3.2306,3095.4,3095.0,0.07205126]
[1732079426767,6.4613,3095.4,3095.0,0.07205126]
[1732079427134,3.23072,3095.3,3095.0,0.07205126]
[1732079428334,3.2306,3095.4,3095.0,0.07205126]
[1732079428740,3.2306,3095.4,3095.0,0.45479283]
[1732079430573,0.7796,3095.3,3095.0,0.07205126]
[1732079430778,3.23091,3095.1,3094.8,0.7981]
[1732079430977,3.23063,3095.4,3094.9,0.07206994]
[1732079431142,3.23063,3095.4,3094.8,1.17044442]
[1732079431569,3.23063,3095.4,3094.9,0.07206994]
[1732079431903,3.23063,3095.4,3094.8,1.17044442]
[1732079431904,3.23081,3095.2,3094.8,0.7981]
[1732079432061,3.23108,3095.0,3094.8,0.7981]
[1732079432751,3.23108,3095.0,3094.4,2.58528]
[1732079432752,3.23108,3095.0,3094.4,2.14299167]
[1732079432956,3.2313,3094.8,3094.4,2.14299167]
[1732079433169,3.2313,3094.8,3094.4,2.35729084]
[1732079434384,3.23108,3095.0,3094.4,2.35729084]
[1732079434538,3.23117,3094.9,3094.4,2.35729084]
[1732079435046,3.2315,3094.6,3094.4,2.14299167]
[1732079435273,3.23135,3094.7,3094.4,2.14299167]
[1732079435461,6.46278,3094.7,3094.4,2.14299167]
[1732079435793,3.23135,3094.7,3094.4,2.14299167]
[1732079436886,3.23153,3094.5,3094.4,0.792]
[1732079437044,3.23143,3094.6,3094.4,0.792]
[1732079437691,3.23135,3094.7,3094.4,0.792]
[1732079438253,6.46275,3094.7,3094.5,0.105225]
[1732079438455,3.23135,3094.7,3094.5,0.105225]
[1732079438995,3.23143,3094.6,3094.5,0.105225]
[1732079440567,3.23135,3094.7,3094.5,0.105225]
[1732079440792,6.46277,3094.7,3094.5,0.105225]
[1732079441355,3.23143,3094.6,3094.5,0.105225]
[1732079441601,3.99803,3094.6,3094.5,0.105225]
[1732079441756,0.7666,3094.6,3094.1,2.10979167]
[1732079442091,3.23158,3094.5,3094.2,0.10525613]
[1732079442601,3.23158,3094.5,3094.3,1.45623742]
[1732079445182,3.23147,3094.6,3094.3,0.10524575]
[1732079445378,3.23147,3094.6,3094.2,1.35099167]
[1732079445629,3.23137,3094.7,3094.4,1.35099167]
[1732079446119,3.23137,3094.7,3094.5,0.1052712]
[1732079447522,3.23143,3094.6,3094.5,0.1052712]
[1732079448233,3.23143,3094.6,3094.2,1.58306875]
[1732079448528,3.23143,3094.6,3094.5,0.1052712]
[1732079449027,3.23143,3094.6,3094.3,0.23418688]
[1732079449236,3.23137,3094.7,3094.5,0.1052712]
[1732079449379,3.23143,3094.6,3094.4,0.10528157]
[1732079451111,6.46296,3094.6,3094.4,0.10528157]
[1732079451983,3.23143,3094.6,3094.5,0.1052712]
[1732079452195,3.23143,3094.6,3094.2,1.35099167]
[1732079452393,3.23143,3094.6,3094.3,0.10529195]
[1732079452643,3.23143,3094.6,3094.2,1.82053484]
[1732079452796,3.23143,3094.6,3094.4,0.10528157]
[1732079452997,3.23143,3094.6,3094.2,1.82053484]
[1732079453312,3.23143,3094.6,3094.3,0.10529195]
[1732079453715,3.23143,3094.6,3094.2,1.82053484]
[1732079453921,3.23143,3094.6,3094.4,0.10528157]
[1732079454127,3.23143,3094.6,3094.3,0.36322543]
[1732079454393,3.23143,3094.6,3094.4,0.10528157]
[1732079454644,3.23153,3094.5,3094.4,0.10528157]
[1732079455034,3.23153,3094.5,3094.2,1.35099167]
[1732079455210,3.23153,3094.5,3094.4,0.10528354]
[1732079455535,0.7666,3094.9,3093.7,3.0]
[1732079455737,3.23153,3094.5,3094.4,0.10528354]
[1732079456037,3.23177,3094.3,3094.0,1.35099167]
[1732079456446,3.23172,3094.4,3094.1,0.10531705]
[1732079457842,3.23176,3094.3,3094.1,0.10531705]
[1732079459499,3.23185,3094.2,3094.1,0.10531705]
[1732079459929,3.23213,3094.0,3093.6,2.10979167]
[1732079460101,6.46429,3094.0,3093.6,2.10979167]
[1732079460306,6.46429,3094.0,3093.6,2.57938284]
[1732079460601,3.23213,3094.0,3093.6,2.57938284]
[1732079461341,3.99849,3094.2,3093.6,2.57938284]
[1732079461552,3.23189,3094.2,3093.8,1.35099167]
[1732079462136,3.23198,3094.1,3093.8,1.35099167]
[1732079462339,3.23207,3094.0,3093.8,1.35099167]
[1732079463202,6.46384,3094.2,3093.8,1.60892995]
[1732079463611,3.23189,3094.2,3093.8,1.60892995]
[1732079464212,6.46383,3094.2,3093.8,1.60892995]
[1732079464623,3.23189,3094.2,3093.8,1.60892995]
[1732079465753,3.99827,3094.4,3093.8,1.60892995]
[1732079465907,3.23186,3094.2,3093.8,1.60892995]
[1732079466249,3.23196,3094.1,3093.8,1.60892995]
[1732079466845,3.23196,3094.1,3093.6,1.22839117]
[1732079467053,3.99879,3093.9,3093.3,0.7588]
[1732079467263,1.35099167,3094.9,3093.5,1.35099167]
[1732079467264,3.23201,3094.1,3093.5,1.35099167]
[1732079467420,3.23206,3094.0,3093.7,1.35099167]
[1732079468059,3.23206,3094.0,3093.8,0.10535804]
[1732079468555,3.23206,3094.0,3093.7,1.35099167]
[1732079468865,3.23206,3094.0,3093.8,0.10538418]
[1732079469350,3.23206,3094.0,3093.7,1.35099167]
[1732079469351,3.23206,3094.0,3093.6,0.7588]
[1732079469564,3.23206,3094.0,3093.9,0.1053738]
[1732079469733,3.23206,3094.0,3093.6,0.7588]
[1732079469912,3.23206,3094.0,3093.9,0.1053738]
[1732079470434,3.23206,3094.0,3093.7,1.35099167]
[1732079470754,3.23206,3094.0,3093.8,0.10538418]
[1732079471157,3.23206,3094.0,3093.7,1.35099167]
[1732079471316,3.23206,3094.0,3093.9,0.1053738]
[1732079471512,3.23206,3094.0,3093.8,0.10538418]
[1732079471816,3.2319,3094.2,3093.9,0.1053738]
[1732079472017,3.2319,3094.2,3093.7,1.35099167]
[1732079472241,6.46384,3094.2,3093.8,0.62191346]
[1732079472464,3.2319,3094.2,3093.8,0.62191346]
[1732079473371,3.2319,3094.2,3093.8,0.10538418]
[1732079473372,3.23196,3094.1,3093.8,0.10538418]
[1732079473719,3.23196,3094.1,3093.7,1.35099167]
[1732079474061,3.23196,3094.1,3093.8,0.10538418]
[1732079474558,3.23196,3094.1,3093.7,1.35099167]
[1732079474766,3.23196,3094.1,3093.9,0.1053738]
[1732079474967,3.23216,3093.9,3093.8,0.10538418]
[1732079475162,3.23216,3093.9,3093.5,1.35099167]
[1732079475380,3.23216,3093.9,3093.5,2.14479167]
[1732079475663,3.23223,3093.9,3093.7,1.35099167]
[1732079476563,3.23196,3094.1,3093.7,1.35099167]
[1732079476564,6.464,3094.1,3093.7,1.35099167]
[1732079477279,3.23206,3094.0,3093.7,1.35099167]
[1732079480546,3.23206,3094.0,3093.7,1.56547084]
[1732079482649,3.23186,3094.2,3093.7,1.56547084]
[1732079483051,3.23169,3094.4,3094.0,1.35099167]
[1732079483371,3.23154,3094.5,3094.2,2.14479167]
[1732079483728,3.23154,3094.5,3094.3,0.1053481]
[1732079484176,3.23154,3094.5,3094.2,2.14479167]
[1732079484376,3.23154,3094.5,3094.4,0.10533772]
[1732079484575,3.23154,3094.5,3094.2,2.14479167]
[1732079484576,3.23154,3094.5,3094.3,0.1053481]
[1732079484879,3.23154,3094.5,3094.4,0.10533772]
[1732079485182,3.23154,3094.5,3094.2,2.35927084]
[1732079485478,3.23154,3094.5,3094.3,0.1053481]
[1732079485777,3.23154,3094.5,3094.2,2.35927084]
[1732079486081,3.23154,3094.5,3094.3,0.1053481]
[1732079486372,3.23148,3094.6,3094.2,2.35927084]
[1732079486580,3.23148,3094.6,3094.4,0.10533772]
[1732079486875,3.23148,3094.6,3094.5,0.10532734]
[1732079487048,3.23148,3094.6,3094.3,0.23592708]
[1732079487249,3.23148,3094.6,3094.5,0.10180354]
[1732079487483,3.23148,3094.6,3094.4,0.10181392]
[1732079487631,3.23148,3094.6,3094.3,0.23592708]
[1732079487837,3.23148,3094.6,3094.4,0.09829048]
[1732079491486,3.23127,3094.8,3094.4,1.71863099]
[1732079493643,3.23118,3094.9,3094.4,1.71863099]
[1732079494254,3.23118,3094.9,3094.5,0.4303991]
[1732079494461,3.23118,3094.9,3094.6,0.08572763]
[1732079496579,3.23124,3094.8,3094.6,0.08572763]
[1732079497080,3.23133,3094.7,3094.4,1.62034051]
[1732079498165,3.23133,3094.7,3094.5,0.08277304]
[1732079499086,3.23143,3094.6,3094.5,0.08277304]
[1732079499464,4.04743,3094.6,3094.0,2.13779167]
[1732079499788,3.23165,3094.4,3094.0,2.13779167]
[1732079499986,3.23165,3094.4,3094.1,0.08280783]
[1732079501247,3.23155,3094.5,3094.1,0.08280783]
[1732079501448,3.23155,3094.5,3094.1,0.56344078]
[1732079502575,6.46318,3094.5,3094.1,0.56344078]
[1732079502781,3.23155,3094.5,3094.1,0.56344078]
[1732079503091,3.23172,3094.4,3094.1,0.56344078]
[1732079503253,3.23172,3094.4,3094.1,0.08280783]
[1732079503589,3.23172,3094.4,3094.1,1.4337995]
[1732079505659,3.23176,3094.3,3094.1,0.08280783]
[1732079509803,3.23185,3094.2,3094.1,0.08280783]
[1732079510098,3.23185,3094.2,3094.1,0.08285766]
[1732079510403,3.23176,3094.3,3094.0,1.35099167]
[1732079510765,3.23176,3094.3,3094.1,0.08285766]
[1732079514313,3.23185,3094.2,3094.1,0.08285766]
[1732079514600,3.23207,3094.0,3093.7,0.8269]
[1732079514804,3.23207,3094.0,3093.7,1.04468917]
[1732079515163,3.23207,3094.0,3093.8,1.6161]
[1732079516791,4.04335,3094.2,3093.8,1.6161]
[1732079516968,3.23185,3094.2,3093.8,2.96709167]
[1732079517323,3.23185,3094.2,3093.9,0.40117808]
[1732079518309,6.46379,3094.2,3093.9,0.40117808]
[1732079518618,3.23185,3094.2,3093.9,0.40117808]
[1732079519520,3.23192,3094.2,3093.9,0.40117808]
[1732079521731,3.0,3094.9,3094.1,0.7541]
[1732079521732,3.23154,3094.5,3094.1,0.7541]
[1732079522591,4.0326,3094.7,3094.4,1.35099167]
[1732079522844,3.2314,3094.7,3094.4,1.35099167]
[1732079526993,3.23144,3094.6,3094.2,1.35099167]
[1732079527189,3.2314,3094.7,3094.2,1.87097854]
[1732079527392,3.2314,3094.7,3094.2,1.35099167]
[1732079528239,3.2314,3094.7,3094.3,0.08282467]
[1732079528414,3.23145,3094.6,3094.3,0.08282467]
[1732079528621,3.23154,3094.5,3094.2,1.35099167]
[1732079528828,3.23143,3094.6,3094.4,0.08281745]
[1732079529009,3.23143,3094.6,3094.2,0.26142886]
[1732079529010,3.23143,3094.6,3094.3,0.08282783]
[1732079529196,3.23143,3094.6,3094.5,0.08280707]
[1732079529397,3.23153,3094.5,3094.4,0.08281745]
[1732079529628,3.23153,3094.5,3094.1,0.7541]
[1732079529927,3.2314,3094.7,3094.2,1.82640917]
[1732079530395,3.23154,3094.5,3094.2,1.82640917]
[1732079532235,3.2314,3094.7,3094.2,1.82640917]
[1732079532955,0.8012,3094.9,3094.4,1.35099167]
[1732079533158,3.9913,3095.2,3094.8,1.35099167]
[1732079533473,3.2309,3095.2,3094.8,1.35099167]
[1732079534285,3.2306,3095.4,3094.8,1.35099167]
[1732079534489,0.7604,3095.5,3095.0,2.15289167]
[1732079534779,0.7604,3095.7,3095.0,4.73770167]
[1732079534988,3.23051,3095.5,3095.2,1.35099167]
[1732079535351,0.7604,3095.7,3095.2,1.35099167]
[1732079535586,0.04915183,3096.3,3095.4,1.35099167]
[1732079535587,0.7604,3095.9,3095.4,1.35099167]
[1732079535789,3.22998,3096.0,3095.6,1.35099167]
[1732079535989,3.22976,3096.2,3095.6,1.35099167]
[1732079536162,3.22976,3096.2,3095.8,1.35099167]
[1732079536557,0.80955183,3096.3,3095.8,1.35099167]
[1732079536759,3.27882183,3096.3,3095.8,1.35099167]
[1732079537179,3.60670401,3096.3,3095.8,1.35099167]
[1732079537377,3.22989,3096.1,3095.8,1.35099167]
[1732079537552,3.60670401,3096.3,3095.8,1.35099167]
[1732079539052,3.2298,3096.2,3095.8,1.35099167]
[1732079539363,3.2298,3096.2,3095.5,3.38623]
[1732079539364,3.22989,3096.1,3095.6,1.35099167]
[1732079539763,3.22989,3096.1,3095.5,0.8019]
[1732079539966,3.23016,3095.9,3095.5,2.15289167]
[1732079540170,3.22989,3096.1,3095.5,2.15289167]
[1732079540503,3.23,3096.0,3095.5,2.15289167]
[1732079542023,0.7604,3096.6,3095.8,3.93512167]
[1732079542024,3.22957,3096.4,3095.8,3.93512167]
[1732079542308,3.22965,3096.4,3095.8,3.93512167]
[1732079542510,3.22967,3096.3,3095.8,1.35099167]
[1732079543312,3.22953,3096.5,3095.9,0.08233862]
[1732079543514,3.22928,3096.7,3096.2,1.35099167]
[1732079543816,3.22928,3096.7,3096.3,0.08229717]
[1732079545027,3.229,3097.0,3096.6,1.35099167]
[1732079545974,3.229,3097.0,3096.7,0.0821953]
[1732079547188,3.229,3097.0,3096.5,0.8019]
[1732079547813,3.22874,3097.2,3096.8,1.35099167]
[1732079548201,3.22874,3097.2,3096.9,0.08217458]
[1732079548881,3.22885,3097.1,3096.9,0.08217458]
[1732079549084,3.22874,3097.2,3096.6,1.35099167]
[1732079549323,3.22874,3097.2,3096.5,0.8019]
[1732079549518,3.22874,3097.2,3096.6,0.08217645]
[1732079549918,3.22893,3097.0,3096.6,0.08217645]
[1732079551497,6.45752,3097.2,3096.6,0.08217645]
[1732079551712,3.22884,3097.1,3096.6,0.82240126]
[1732079556101,3.22874,3097.2,3096.6,2.17339293]
[1732079556321,3.22874,3097.2,3096.6,1.43316812]
[1732079557395,3.22874,3097.2,3096.6,3.69365812]
[1732079558328,3.22883,3097.1,3096.6,1.43316812]
[1732079558519,3.22874,3097.2,3096.6,1.43316812]
[1732079558725,3.22874,3097.2,3096.7,1.83810681]
[1732079559023,3.22874,3097.2,3096.7,1.92026343]
[1732079559935,3.22884,3097.1,3096.7,1.92026343]
[1732079560791,3.22901,3097.0,3096.7,1.69675662]
[1732079560993,3.22903,3096.9,3096.7,1.69675662]
[1732079561206,3.22913,3096.8,3096.7,1.69675662]
[1732079565759,4.05913,3097.0,3096.7,1.69675662]
[1732079566056,3.22903,3096.9,3096.7,1.69675662]
[1732079566345,3.22893,3097.0,3096.7,1.69675662]
[1732079566346,3.22913,3096.8,3096.7,1.69675662]
[1732079567112,3.22893,3097.0,3096.7,1.69675662]
[1732079567350,3.22904,3096.9,3096.7,1.69675662]
[1732079567657,3.22893,3097.0,3096.7,1.69675662]
[1732079568030,3.22907,3096.9,3096.7,1.69675662]
[1732079569055,3.22913,3096.8,3096.7,1.69675662]
[1732079570247,4.636036,3096.8,3096.7,1.69675662]
[1732079572119,3.99023,3096.8,3096.7,1.69675662]
[1732079572355,3.99023,3096.8,3096.7,1.6146]
[1732079572572,3.99023,3096.8,3096.7,1.69675861]
[1732079574975,3.22905,3096.9,3096.7,1.69675861]
[1732079578677,3.22883,3097.1,3096.7,1.86643447]
[1732079578834,3.22883,3097.1,3096.8,0.7631]
[1732079579032,3.22883,3097.1,3096.8,0.84524547]
[1732079579340,3.22865,3097.3,3096.8,0.84524547]
[1732079579341,3.22875,3097.2,3096.8,0.84524547]
[1732079580429,3.22875,3097.2,3096.8,1.3342506]
[1732079580688,3.22862,3097.3,3096.8,1.3342506]
[1732079580846,3.22872,3097.2,3096.8,0.84524547]
[1732079581357,3.22862,3097.3,3096.8,0.84524547]
[1732079582533,3.22874,3097.2,3096.8,0.84524547]
[1732079582875,6.45734,3097.3,3096.8,0.84524547]
[1732079583034,3.22873,3097.2,3096.9,0.26295213]
[1732079583242,3.22873,3097.2,3096.9,0.34295992]
[1732079585469,0.7611,3097.5,3096.9,0.34295992]
[1732079585470,3.98955,3097.5,3096.9,0.34295992]
[1732079585808,7.21805,3097.5,3096.9,0.34295992]
[1732079586096,7.21805,3097.5,3097.0,0.33664399]
[1732079586400,7.21805,3097.5,3097.1,0.0799923]
[1732079586599,3.22845,3097.5,3097.1,0.0799923]
[1732079586762,3.22852,3097.4,3097.1,0.0799923]
[1732079589207,3.2283,3097.6,3097.1,0.0799923]
[1732079589359,3.22849,3097.5,3097.1,0.0799923]
[1732079589566,3.22849,3097.5,3096.9,2.52326213]
[1732079589793,3.22849,3097.5,3097.2,0.07998194]
[1732079589976,3.22849,3097.5,3097.0,0.55467321]
[1732079590193,3.2283,3097.6,3097.3,0.07997158]
[1732079590395,0.7611,3097.7,3097.3,0.07997158]
[1732079590396,0.7611,3097.9,3097.3,0.7631]
[1732079590606,3.22809,3097.8,3097.4,0.07994783]
[1732079591110,3.22809,3097.8,3097.5,0.31030678]
[1732079591346,3.22793,3098.0,3097.5,0.31030678]
[1732079591481,3.22793,3098.0,3097.6,0.8430137]
[1732079593923,0.7611,3098.2,3097.6,0.8430137]
[1732079594222,3.2282,3097.7,3097.6,0.8430137]
[1732079595031,3.2282,3097.7,3097.6,0.0799137]
[1732079595235,3.2282,3097.7,3097.3,0.8007]
[1732079595236,6.45649,3097.7,3097.3,0.8007]
[1732079595441,3.2282,3097.7,3097.6,0.07991055]
[1732079595734,3.22842,3097.5,3097.3,0.8007]
[1732079595904,3.22842,3097.5,3097.0,0.8007]
[1732079596262,0.812,3097.7,3096.9,0.26295213]
[1732079596263,3.22834,3097.6,3096.9,0.26295213]
[1732079596405,3.22888,3097.1,3096.8,0.8007]
[1732079596840,3.22895,3097.0,3096.8,0.8007]
[1732079598119,3.22903,3096.9,3096.8,0.8007]
[1732079598645,3.22903,3096.9,3096.4,0.8007]
[1732079598808,3.22903,3096.9,3096.5,0.558369]
[1732079599409,3.22884,3097.1,3096.5,0.558369]
[1732079599745,6.45776,3097.1,3096.5,0.558369]
[1732079600304,3.22884,3097.1,3096.5,0.558369]
[1732079600541,6.45774,3097.1,3096.6,0.3942649]
[1732079600741,3.22901,3097.0,3096.6,0.3942649]
[1732079600943,3.22901,3097.0,3096.5,0.558369]
[1732079601957,3.22907,3096.9,3096.4,0.8007]
[1732079602135,3.22901,3097.0,3096.4,3.38432]
[1732079602622,3.22901,3097.0,3096.5,1.34946713]
[1732079603207,3.22901,3097.0,3096.6,0.08000588]
[1732079603739,3.22883,3097.1,3096.6,0.08000588]
[1732079603937,3.22883,3097.1,3096.7,0.4013003]
[1732079604255,3.22883,3097.1,3096.8,0.0799796]
[1732079604405,3.22883,3097.1,3096.7,0.4013003]
[1732079604609,3.22883,3097.1,3096.9,0.07996924]
[1732079604933,3.22883,3097.1,3096.7,0.4013003]
[1732079605449,4.04073,3097.2,3096.8,0.0799796]
[1732079605647,3.22863,3097.3,3096.8,0.38645359]
[1732079605857,3.22844,3097.5,3097.0,3.39063]
[1732079606144,3.22822,3097.7,3097.1,1.34946713]
[1732079606379,3.22822,3097.7,3097.2,3.87000571]
[1732079606529,3.22822,3097.7,3097.3,1.34946713]
[1732079606733,3.22822,3097.7,3097.2,0.55396144]
[1732079606734,3.22822,3097.7,3097.4,0.88743501]
[1732079608164,3.22841,3097.5,3097.4,0.88743501]
[1732079609279,3.22841,3097.5,3097.1,0.8075]
[1732079609569,3.22841,3097.5,3096.8,0.30647399]
[1732079609570,3.22861,3097.3,3096.8,1.11397399]
[1732079609774,3.22861,3097.3,3096.9,0.58120805]
[1732079609940,3.22861,3097.3,3096.9,0.66118242]
[1732079610799,3.22861,3097.3,3096.9,0.07997437]
[1732079613359,3.22843,3097.5,3096.9,0.07997437]
[1732079613543,3.22855,3097.4,3096.9,0.07997437]
[1732079615242,3.22889,3097.1,3096.9,0.07997437]
[1732079615441,0.7992,3097.6,3096.9,0.07997437]
[1732079615442,3.22854,3097.4,3096.9,0.07997437]
[1732079615690,3.22854,3097.4,3096.9,0.42705481]
[1732079616452,3.22854,3097.4,3096.9,3.01026481]
[1732079616791,4.02755,3097.6,3097.1,2.58305]
[1732079616792,3.22835,3097.6,3097.1,2.58305]
[1732079616958,3.22835,3097.6,3097.2,0.339055]
[1732079617156,3.22835,3097.6,3097.3,0.07992818]
[1732079617363,3.22835,3097.6,3097.2,0.339055]
[1732079617612,3.22835,3097.6,3097.3,0.07992818]
[1732079617752,3.22835,3097.6,3097.2,0.339055]
[1732079617953,3.22835,3097.6,3097.3,0.37213868]
[1732079618489,3.22812,3097.8,3097.3,0.37213868]
[1732079618984,0.7992,3097.9,3097.4,0.8075]
[1732079618985,3.22802,3097.9,3097.4,0.8075]
[1732079619190,3.22802,3097.9,3097.4,0.88741783]
[1732079620453,3.22802,3097.9,3097.5,0.37624983]
[1732079620654,3.22802,3097.9,3097.5,0.45615375]
[1732079621166,3.22784,3098.1,3097.5,0.45615375]
[1732079621810,2.5492,3098.4,3097.5,0.45615375]
[1732079622045,4.97756,3098.4,3097.8,2.58239]
[1732079622190,1.75,3098.4,3098.0,2.5823]
[1732079622384,1.75,3098.4,3098.1,3.36362]
[1732079622733,1.75,3098.4,3098.1,0.86123116]
[1732079622935,1.75,3098.4,3098.2,0.63657877]
[1732079623287,1.75,3098.4,3098.3,0.07981046]
[1732079625993,1.75,3098.4,3098.1,0.7814]
[1732079626224,1.75,3098.4,3098.3,0.07981046]
[1732079626442,1.75,3098.4,3098.1,0.7814]
[1732079626637,1.75,3098.4,3098.3,0.07977142]
[1732079626824,1.75,3098.4,3098.1,0.7814]
[1732079627001,1.75,3098.4,3098.3,0.07977142]
[1732079627196,1.75,3098.4,3098.1,0.7814]
[1732079627417,1.75,3098.4,3098.3,0.07977142]
[1732079627628,4.97747,3098.4,3097.8,0.7877]
[1732079627852,3.22766,3098.3,3097.8,1.33818065]
[1732079628958,3.22775,3098.2,3097.8,1.33818065]
[1732079629169,3.22775,3098.2,3097.8,0.7877]